[Event "November 21 Early 2023"]
[Site "https://www.chess.com"]
[Date "2023.11.21"]
[Round "10"]
[White "Matthes, Aaron"]
[Black "Ghosh, Chanchal Kumer"]
[Result "1-0"]
[Board "140"]
[TimeControl "180+1"]
[WhiteFideId "16227310"]
[BlackFideId "10201858"]
[WhiteElo "2352"]
[BlackElo "2067"]
[WhiteTeam "GER"]
[BlackTeam "BAN"]
[WhiteClock "0:01:32"]
[BlackClock "0:00:00"]

1. g3 {[%clk 0:02:55]}  d5 {[%clk 0:02:59]} 2. Nf3 {[%clk 0:02:56]}  e6 {[%clk 0:03:00]} 3. Bg2 {[%clk 0:02:57]}  Nf6 {[%clk 0:03:00]} 4. O-O {[%clk 0:02:57]}  c5 {[%clk 0:03:01]} 5. b3 {[%clk 0:02:58]}  Nc6 {[%clk 0:03:01]} 6. Bb2 {[%clk 0:02:59]}  Be7 {[%clk 0:03:02]} 7. d4 {[%clk 0:03:00]}  O-O {[%clk 0:03:02]} 8. Nbd2 {[%clk 0:03:01]}  cxd4 {[%clk 0:03:02]} 9. Nxd4 {[%clk 0:03:00]}  Nxd4 {[%clk 0:02:54]} 10. Bxd4 {[%clk 0:03:01]}  Re8 {[%clk 0:02:52]} 11. c4 {[%clk 0:03:00]}  dxc4 {[%clk 0:02:48]} 12. Nxc4 {[%clk 0:03:01]}  Nd5 {[%clk 0:02:34]} 13. Be5 {[%clk 0:02:49]}  Bf6 {[%clk 0:02:24]} 14. Qd2 {[%clk 0:02:33]}  Bxe5 {[%clk 0:02:06]} 15. Nxe5 {[%clk 0:02:33]}  Qc7 {[%clk 0:01:59]} 16. Nc4 {[%clk 0:02:19]}  Rd8 {[%clk 0:01:58]} 17. Rac1 {[%clk 0:02:16]}  Qe7 {[%clk 0:01:57]} 18. Rfd1 {[%clk 0:02:13]}  b5 {[%clk 0:01:35]} 19. Na5 {[%clk 0:02:01]}  Rd7 {[%clk 0:01:06]} 20. Nc6 {[%clk 0:01:48]}  Qe8 {[%clk 0:01:05]} 21. Ne5 {[%clk 0:01:46]}  Rd8 {[%clk 0:00:06]} 22. e4 {[%clk 0:01:44]}  Bb7 {[%clk 0:00:03]} 23. exd5 {[%clk 0:01:44]}  Bxd5 {[%clk 0:00:02]} 24. Bxd5 {[%clk 0:01:44]}  Rxd5 {[%clk 0:00:03]} 25. Qe3 {[%clk 0:01:44]}  Rad8 {[%clk 0:00:02]} 26. Rxd5 {[%clk 0:01:44]}  exd5 {[%clk 0:00:03]} 27. Nf3 {[%clk 0:01:36]}  Qd7 {[%clk 0:00:00]} 28. Qf4 {[%clk 0:01:32]} 1-0

[Event "November 21 Early 2023"]
[Site "https://www.chess.com"]
[Date "2023.11.21"]
[Round "10"]
[White "Shapiro, Daniel"]
[Black "Umarov, Sabir"]
[Result "1-0"]
[Board "142"]
[TimeControl "180+1"]
[WhiteFideId "2001780"]
[BlackFideId "14200538"]
[WhiteElo "2328"]
[BlackElo "2332"]
[WhiteTeam "USA"]
[BlackTeam "UZB"]
[WhiteClock "0:00:28"]
[BlackClock "0:00:00"]

1. d4 {[%clk 0:03:00]}  c6 {[%clk 0:02:59]} 2. c4 {[%clk 0:03:00]}  d6 {[%clk 0:02:59]} 3. Nc3 {[%clk 0:02:57]}  g6 {[%clk 0:02:59]} 4. e4 {[%clk 0:02:56]}  Bg7 {[%clk 0:02:59]} 5. Nge2 {[%clk 0:02:48]}  Nf6 {[%clk 0:02:55]} 6. f3 {[%clk 0:02:46]}  O-O {[%clk 0:02:55]} 7. Be3 {[%clk 0:02:46]}  b5 {[%clk 0:02:45]} 8. cxb5 {[%clk 0:02:42]}  cxb5 {[%clk 0:02:46]} 9. Nxb5 {[%clk 0:02:42]}  Qb6 {[%clk 0:02:28]} 10. Qb3 {[%clk 0:02:41]}  Na6 {[%clk 0:02:15]} 11. Nec3 {[%clk 0:02:30]}  Be6 {[%clk 0:02:12]} 12. Qd1 {[%clk 0:02:16]}  Rfc8 {[%clk 0:01:49]} 13. Qd2 {[%clk 0:02:15]}  d5 {[%clk 0:01:25]} 14. e5 {[%clk 0:02:10]}  Nd7 {[%clk 0:01:24]} 15. Be2 {[%clk 0:02:06]}  Rab8 {[%clk 0:01:12]} 16. O-O {[%clk 0:01:55]}  Nc7 {[%clk 0:01:10]} 17. Nxc7 {[%clk 0:01:54]}  Rxc7 {[%clk 0:01:11]} 18. Rab1 {[%clk 0:01:54]}  Bf5 {[%clk 0:00:55]} 19. Nxd5 {[%clk 0:01:47]}  Qb7 {[%clk 0:00:52]} 20. Nxc7 {[%clk 0:01:41]}  Bxb1 {[%clk 0:00:49]} 21. Rxb1 {[%clk 0:01:40]}  Qxc7 {[%clk 0:00:50]} 22. f4 {[%clk 0:01:35]}  e6 {[%clk 0:00:41]} 23. Rc1 {[%clk 0:01:29]}  Qb7 {[%clk 0:00:37]} 24. b3 {[%clk 0:01:22]}  Nb6 {[%clk 0:00:37]} 25. Bf3 {[%clk 0:01:19]}  Nd5 {[%clk 0:00:37]} 26. Bf2 {[%clk 0:01:11]}  Qd7 {[%clk 0:00:34]} 27. g3 {[%clk 0:01:04]}  Bf8 {[%clk 0:00:33]} 28. Qc2 {[%clk 0:01:01]}  Ba3 {[%clk 0:00:30]} 29. Qc6 {[%clk 0:00:57]}  Qxc6 {[%clk 0:00:20]} 30. Rxc6 {[%clk 0:00:56]}  Nb4 {[%clk 0:00:20]} 31. Rc7 {[%clk 0:00:54]}  a5 {[%clk 0:00:20]} 32. g4 {[%clk 0:00:46]}  Nxa2 {[%clk 0:00:19]} 33. d5 {[%clk 0:00:40]}  Rxb3 {[%clk 0:00:18]} 34. d6 {[%clk 0:00:35]}  Rxf3 {[%clk 0:00:18]} 35. Rc8+ {[%clk 0:00:35]}  Kg7 {[%clk 0:00:17]} 36. d7 {[%clk 0:00:36]}  Be7 {[%clk 0:00:13]} 37. Re8 {[%clk 0:00:36]}  Rxf2 {[%clk 0:00:04]} 38. Kxf2 {[%clk 0:00:31]}  Bc5+ {[%clk 0:00:05]} 39. Kf3 {[%clk 0:00:29]}  Nb4 {[%clk 0:00:00]} 40. d8=Q {[%clk 0:00:28]} 1-0

[Event "November 21 Early 2023"]
[Site "https://www.chess.com"]
[Date "2023.11.21"]
[Round "10"]
[White "Mikhailova, Irina"]
[Black "Der_Balak_3Halak"]
[Result "1/2-1/2"]
[Board "145"]
[TimeControl "180+1"]
[WhiteFideId "4109040"]
[WhiteElo "2009"]
[BlackElo "2302"]
[WhiteTeam "RUS"]
[WhiteClock "0:00:46"]
[BlackClock "0:00:03"]

1. d4 {[%clk 0:03:00]}  Nf6 {[%clk 0:02:57]} 2. Nf3 {[%clk 0:03:00]}  d5 {[%clk 0:02:57]} 3. c4 {[%clk 0:03:00]}  c6 {[%clk 0:02:56]} 4. cxd5 {[%clk 0:02:59]}  cxd5 {[%clk 0:02:57]} 5. Nc3 {[%clk 0:02:58]}  Nc6 {[%clk 0:02:57]} 6. Bf4 {[%clk 0:02:58]}  Bf5 {[%clk 0:02:57]} 7. e3 {[%clk 0:02:58]}  e6 {[%clk 0:02:57]} 8. Qb3 {[%clk 0:02:58]}  Qc8 {[%clk 0:02:19]} 9. Bb5 {[%clk 0:02:55]}  Be7 {[%clk 0:02:14]} 10. Ne5 {[%clk 0:02:50]}  O-O {[%clk 0:02:12]} 11. O-O {[%clk 0:02:50]}  Nxe5 {[%clk 0:02:08]} 12. Bxe5 {[%clk 0:02:49]}  a6 {[%clk 0:02:05]} 13. Be2 {[%clk 0:02:49]}  Nd7 {[%clk 0:02:01]} 14. Rac1 {[%clk 0:02:41]}  Qd8 {[%clk 0:01:24]} 15. Bg3 {[%clk 0:02:40]}  Rc8 {[%clk 0:01:24]} 16. Qd1 {[%clk 0:02:26]}  Nb6 {[%clk 0:01:21]} 17. Bd3 {[%clk 0:02:25]}  Bxd3 {[%clk 0:01:20]} 18. Qxd3 {[%clk 0:02:25]}  Bd6 {[%clk 0:01:19]} 19. Ne2 {[%clk 0:02:22]}  Bxg3 {[%clk 0:01:14]} 20. hxg3 {[%clk 0:02:22]}  Qd7 {[%clk 0:01:06]} 21. Nf4 {[%clk 0:02:20]}  Nc4 {[%clk 0:01:04]} 22. b3 {[%clk 0:02:20]}  Nd6 {[%clk 0:01:01]} 23. Rc2 {[%clk 0:02:15]}  Ne4 {[%clk 0:01:00]} 24. Rfc1 {[%clk 0:02:15]}  h6 {[%clk 0:00:51]} 25. g4 {[%clk 0:02:11]}  Nd6 {[%clk 0:00:36]} 26. f3 {[%clk 0:01:54]}  Rxc2 {[%clk 0:00:34]} 27. Rxc2 {[%clk 0:01:54]}  Rc8 {[%clk 0:00:34]} 28. Qd1 {[%clk 0:01:54]}  Nb5 {[%clk 0:00:26]} 29. Qc1 {[%clk 0:01:48]}  Rxc2 {[%clk 0:00:23]} 30. Qxc2 {[%clk 0:01:49]}  Qc7 {[%clk 0:00:21]} 31. Qxc7 {[%clk 0:01:48]}  Nxc7 {[%clk 0:00:22]} 32. Nd3 {[%clk 0:01:48]}  b6 {[%clk 0:00:19]} 33. e4 {[%clk 0:01:41]}  dxe4 {[%clk 0:00:19]} 34. fxe4 {[%clk 0:01:41]}  Kf8 {[%clk 0:00:19]} 35. Kf2 {[%clk 0:01:41]}  Ke7 {[%clk 0:00:20]} 36. Ke3 {[%clk 0:01:41]}  f6 {[%clk 0:00:20]} 37. a4 {[%clk 0:01:35]}  a5 {[%clk 0:00:19]} 38. b4 {[%clk 0:01:34]}  Kd6 {[%clk 0:00:17]} 39. bxa5 {[%clk 0:01:21]}  bxa5 {[%clk 0:00:18]} 40. Nc5 {[%clk 0:01:21]}  Kc6 {[%clk 0:00:18]} 41. Kd3 {[%clk 0:01:20]}  e5 {[%clk 0:00:19]} 42. Nb3 {[%clk 0:01:20]}  Kb6 {[%clk 0:00:13]} 43. dxe5 {[%clk 0:01:12]}  fxe5 {[%clk 0:00:13]} 44. Kc4 {[%clk 0:01:12]}  g6 {[%clk 0:00:08]} 45. Nc5 {[%clk 0:01:08]}  Kc6 {[%clk 0:00:08]} 46. g3 {[%clk 0:01:06]}  h5 {[%clk 0:00:07]} 47. g5 {[%clk 0:01:06]}  Ne8 {[%clk 0:00:05]} 48. Ne6 {[%clk 0:01:05]}  Nd6+ {[%clk 0:00:05]} 49. Kd3 {[%clk 0:01:05]}  Nf7 {[%clk 0:00:06]} 50. Nf8 {[%clk 0:01:05]}  Nxg5 {[%clk 0:00:05]} 51. Nxg6 {[%clk 0:01:05]}  Kd6 {[%clk 0:00:05]} 52. Nh4 {[%clk 0:01:04]}  Ne6 {[%clk 0:00:03]} 53. Nf5+ {[%clk 0:01:05]}  Kc5 {[%clk 0:00:03]} 54. Ne3 {[%clk 0:01:00]}  Kb4 {[%clk 0:00:03]} 55. Nd5+ {[%clk 0:00:50]}  Kxa4 {[%clk 0:00:03]} 56. Kc4 {[%clk 0:00:51]}  Ka3 {[%clk 0:00:03]} 57. Nb6 {[%clk 0:00:50]}  a4 {[%clk 0:00:02]} 58. Kd5 {[%clk 0:00:51]}  Nd4 {[%clk 0:00:01]} 59. Kxe5 {[%clk 0:00:50]}  Ne2 {[%clk 0:00:02]} 60. Kf5 {[%clk 0:00:46]}  Nxg3+ {[%clk 0:00:02]} 61. Kg5 {[%clk 0:00:46]}  Nxe4+ {[%clk 0:00:02]} 62. Kxh5 {[%clk 0:00:46]}  Kb4 {[%clk 0:00:03]} 63. Nxa4 {[%clk 0:00:46]} 1/2-1/2

[Event "November 21 Early 2023"]
[Site "https://www.chess.com"]
[Date "2023.11.21"]
[Round "10"]
[White "SeLaPegoACualquiera"]
[Black "KorolDimitriy75"]
[Result "0-1"]
[Board "146"]
[TimeControl "180+1"]
[WhiteElo "2166"]
[BlackElo "2324"]
[WhiteClock "0:00:24"]
[BlackClock "0:00:08"]

1. e4 {[%clk 0:02:57]}  c5 {[%clk 0:03:00]} 2. Nf3 {[%clk 0:02:56]}  d6 {[%clk 0:03:00]} 3. d4 {[%clk 0:02:57]}  cxd4 {[%clk 0:03:01]} 4. c3 {[%clk 0:02:58]}  Nf6 {[%clk 0:03:01]} 5. e5 {[%clk 0:02:58]}  dxe5 {[%clk 0:03:00]} 6. Nxe5 {[%clk 0:02:59]}  Nbd7 {[%clk 0:02:45]} 7. Nf3 {[%clk 0:02:57]}  dxc3 {[%clk 0:02:43]} 8. Nxc3 {[%clk 0:02:57]}  e6 {[%clk 0:02:42]} 9. Bc4 {[%clk 0:02:57]}  Be7 {[%clk 0:02:39]} 10. O-O {[%clk 0:02:57]}  O-O {[%clk 0:02:39]} 11. Bf4 {[%clk 0:02:56]}  a6 {[%clk 0:02:38]} 12. Qe2 {[%clk 0:02:55]}  b5 {[%clk 0:02:34]} 13. Bb3 {[%clk 0:02:55]}  Bb7 {[%clk 0:02:34]} 14. Rfd1 {[%clk 0:02:52]}  Qb6 {[%clk 0:02:05]} 15. Ng5 {[%clk 0:02:39]}  Nc5 {[%clk 0:02:01]} 16. Be3 {[%clk 0:02:34]}  Qc6 {[%clk 0:01:59]} 17. f3 {[%clk 0:02:20]}  Nxb3 {[%clk 0:01:54]} 18. axb3 {[%clk 0:02:21]}  Rfd8 {[%clk 0:01:35]} 19. Nce4 {[%clk 0:02:18]}  h6 {[%clk 0:01:12]} 20. Nxf6+ {[%clk 0:02:14]}  Bxf6 {[%clk 0:01:12]} 21. Ne4 {[%clk 0:02:15]}  Be7 {[%clk 0:01:07]} 22. Rdc1 {[%clk 0:02:11]}  Qd5 {[%clk 0:01:01]} 23. Bb6 {[%clk 0:02:08]}  Rdc8 {[%clk 0:00:35]} 24. Rd1 {[%clk 0:02:05]}  Qxb3 {[%clk 0:00:34]} 25. Rd7 {[%clk 0:01:50]}  Bxe4 {[%clk 0:00:34]} 26. Qxe4 {[%clk 0:01:42]}  Bf6 {[%clk 0:00:33]} 27. Re1 {[%clk 0:01:33]}  Qxb2 {[%clk 0:00:31]} 28. Rxf7 {[%clk 0:01:26]}  Kxf7 {[%clk 0:00:31]} 29. Qxe6+ {[%clk 0:01:25]}  Kg6 {[%clk 0:00:27]} 30. Qe4+ {[%clk 0:01:25]}  Kf7 {[%clk 0:00:25]} 31. Qe6+ {[%clk 0:01:24]}  Kf8 {[%clk 0:00:22]} 32. Be3 {[%clk 0:01:11]}  Qc3 {[%clk 0:00:19]} 33. Bf4 {[%clk 0:01:04]}  Rd8 {[%clk 0:00:15]} 34. h3 {[%clk 0:00:59]}  Qd4+ {[%clk 0:00:13]} 35. Be3 {[%clk 0:00:59]}  Qd5 {[%clk 0:00:12]} 36. Qg4 {[%clk 0:00:49]}  Kg8 {[%clk 0:00:12]} 37. Qg6 {[%clk 0:00:46]}  Qf7 {[%clk 0:00:11]} 38. Qg4 {[%clk 0:00:44]}  Re8 {[%clk 0:00:11]} 39. Kf2 {[%clk 0:00:38]}  Rad8 {[%clk 0:00:10]} 40. Rc1 {[%clk 0:00:36]}  Kh8 {[%clk 0:00:09]} 41. Rc6 {[%clk 0:00:30]}  Qd7 {[%clk 0:00:08]} 42. Qxd7 {[%clk 0:00:28]}  Rxd7 {[%clk 0:00:09]} 43. Rxa6 {[%clk 0:00:28]}  Rb7 {[%clk 0:00:09]} 44. Bxh6 {[%clk 0:00:26]}  gxh6 {[%clk 0:00:08]} 45. Rxf6 {[%clk 0:00:25]}  Kg7 {[%clk 0:00:08]} 46. Ra6 {[%clk 0:00:24]}  b4 {[%clk 0:00:08]} 47. Ra3 {[%clk 0:00:25]}  bxa3 {[%clk 0:00:08]} 48. f4 {[%clk 0:00:23]}  a2 {[%clk 0:00:08]} 49. f5 {[%clk 0:00:24]}  a1=Q {[%clk 0:00:08]} 50. f6+ {[%clk 0:00:25]}  Qxf6+ {[%clk 0:00:09]} 51. Kg3 {[%clk 0:00:25]}  Re3+ {[%clk 0:00:08]} 52. Kh2 {[%clk 0:00:24]}  Qf4+ {[%clk 0:00:08]} 53. Kg1 {[%clk 0:00:24]}  Rb1# {[%clk 0:00:08]} 0-1

[Event "November 21 Early 2023"]
[Site "https://www.chess.com"]
[Date "2023.11.21"]
[Round "10"]
[White "Sanchez Alvares, Kelvin Antonio"]
[Black "LLariMarc"]
[Result "0-1"]
[Board "147"]
[TimeControl "180+1"]
[WhiteFideId "3906680"]
[WhiteElo "2217"]
[BlackElo "2250"]
[WhiteTeam "VEN"]
[WhiteClock "0:00:48"]
[BlackClock "0:00:24"]

1. e4 {[%clk 0:02:56]}  e6 {[%clk 0:02:27]} 2. d4 {[%clk 0:02:55]}  d5 {[%clk 0:02:28]} 3. Nc3 {[%clk 0:02:55]}  Nf6 {[%clk 0:02:21]} 4. e5 {[%clk 0:02:54]}  Nfd7 {[%clk 0:02:19]} 5. f4 {[%clk 0:02:55]}  c5 {[%clk 0:02:19]} 6. Nf3 {[%clk 0:02:55]}  Nc6 {[%clk 0:02:20]} 7. Be3 {[%clk 0:02:55]}  a6 {[%clk 0:02:20]} 8. Qd2 {[%clk 0:02:55]}  Be7 {[%clk 0:02:20]} 9. Be2 {[%clk 0:02:54]}  O-O {[%clk 0:02:14]} 10. O-O {[%clk 0:02:53]}  b5 {[%clk 0:02:14]} 11. Nd1 {[%clk 0:02:50]}  Bb7 {[%clk 0:02:11]} 12. Nf2 {[%clk 0:02:49]}  Rc8 {[%clk 0:02:09]} 13. c3 {[%clk 0:02:48]}  b4 {[%clk 0:02:00]} 14. dxc5 {[%clk 0:02:25]}  Nxc5 {[%clk 0:01:52]} 15. cxb4 {[%clk 0:02:13]}  Ne4 {[%clk 0:01:52]} 16. Nxe4 {[%clk 0:02:08]}  dxe4 {[%clk 0:01:53]} 17. Qxd8 {[%clk 0:02:07]}  Rfxd8 {[%clk 0:01:51]} 18. Ng5 {[%clk 0:02:07]}  Bxg5 {[%clk 0:01:49]} 19. fxg5 {[%clk 0:02:06]}  Nxe5 {[%clk 0:01:39]} 20. Rac1 {[%clk 0:02:01]}  Nd3 {[%clk 0:01:39]} 21. Bxd3 {[%clk 0:01:51]}  exd3 {[%clk 0:01:33]} 22. Bc5 {[%clk 0:01:51]}  Be4 {[%clk 0:01:27]} 23. Kf2 {[%clk 0:01:47]}  d2 {[%clk 0:01:22]} 24. Rcd1 {[%clk 0:01:40]}  Bc2 {[%clk 0:01:21]} 25. Ke2 {[%clk 0:01:37]}  Bd3+ {[%clk 0:01:17]} 26. Kf2 {[%clk 0:01:31]}  Bxf1 {[%clk 0:01:17]} 27. Kxf1 {[%clk 0:01:31]}  Rd5 {[%clk 0:01:01]} 28. h4 {[%clk 0:01:31]}  a5 {[%clk 0:00:59]} 29. a3 {[%clk 0:01:26]}  axb4 {[%clk 0:00:59]} 30. axb4 {[%clk 0:01:27]}  f6 {[%clk 0:00:55]} 31. gxf6 {[%clk 0:01:26]}  gxf6 {[%clk 0:00:56]} 32. Ke2 {[%clk 0:01:25]}  h5 {[%clk 0:00:50]} 33. Rxd2 {[%clk 0:01:24]}  Rxd2+ {[%clk 0:00:49]} 34. Kxd2 {[%clk 0:01:25]}  Kf7 {[%clk 0:00:48]} 35. Kd3 {[%clk 0:01:26]}  e5 {[%clk 0:00:49]} 36. Kc4 {[%clk 0:01:26]}  Ke6 {[%clk 0:00:49]} 37. b5 {[%clk 0:01:25]}  Kd7 {[%clk 0:00:43]} 38. Kd5 {[%clk 0:01:24]}  Rg8 {[%clk 0:00:40]} 39. Ba7 {[%clk 0:01:08]}  Rxg2 {[%clk 0:00:37]} 40. b4 {[%clk 0:01:06]}  Rb2 {[%clk 0:00:37]} 41. Kc5 {[%clk 0:01:06]}  Kc7 {[%clk 0:00:36]} 42. Bb6+ {[%clk 0:01:04]}  Kb7 {[%clk 0:00:37]} 43. Bd8 {[%clk 0:01:04]}  f5 {[%clk 0:00:36]} 44. Bf6 {[%clk 0:01:02]}  Rc2+ {[%clk 0:00:34]} 45. Kd5 {[%clk 0:01:01]}  e4 {[%clk 0:00:35]} 46. Bg5 {[%clk 0:01:01]}  Rc3 {[%clk 0:00:26]} 47. Kd4 {[%clk 0:00:52]}  Rd3+ {[%clk 0:00:26]} 48. Ke5 {[%clk 0:00:52]}  e3 {[%clk 0:00:25]} 49. Bxe3 {[%clk 0:00:52]}  Rxe3+ {[%clk 0:00:26]} 50. Kxf5 {[%clk 0:00:52]}  Kb6 {[%clk 0:00:24]} 51. Kf4 {[%clk 0:00:51]}  Rd3 {[%clk 0:00:24]} 52. Kg5 {[%clk 0:00:48]}  Rd5+ {[%clk 0:00:24]} 0-1

[Event "November 21 Early 2023"]
[Site "https://www.chess.com"]
[Date "2023.11.21"]
[Round "10"]
[White "Cueto, Jonny"]
[Black "Pak, Yevgeniy"]
[Result "1-0"]
[Board "148"]
[TimeControl "180+1"]
[WhiteFideId "3300145"]
[BlackFideId "14201712"]
[WhiteElo "2155"]
[BlackElo "2320"]
[WhiteTeam "BOL"]
[BlackTeam "KAZ"]
[WhiteClock "0:00:48"]
[BlackClock "0:01:24"]

1. d4 {[%clk 0:02:58]}  Nf6 {[%clk 0:02:59]} 2. Bf4 {[%clk 0:02:58]}  g6 {[%clk 0:02:58]} 3. Nc3 {[%clk 0:02:58]}  d5 {[%clk 0:02:53]} 4. e3 {[%clk 0:02:58]}  a6 {[%clk 0:02:51]} 5. h4 {[%clk 0:02:57]}  b5 {[%clk 0:02:47]} 6. Be2 {[%clk 0:02:48]}  Bf5 {[%clk 0:02:46]} 7. Nf3 {[%clk 0:02:44]}  Bg7 {[%clk 0:02:35]} 8. Ne5 {[%clk 0:02:36]}  O-O {[%clk 0:02:32]} 9. g4 {[%clk 0:02:28]}  Be6 {[%clk 0:02:27]} 10. h5 {[%clk 0:02:27]}  Nbd7 {[%clk 0:02:25]} 11. hxg6 {[%clk 0:02:26]}  hxg6 {[%clk 0:02:13]} 12. g5 {[%clk 0:02:19]}  Ne4 {[%clk 0:02:11]} 13. Bg4 {[%clk 0:02:05]}  f5 {[%clk 0:01:47]} 14. gxf6 {[%clk 0:01:54]}  Bxg4 {[%clk 0:01:41]} 15. Qxg4 {[%clk 0:01:44]}  Nxe5 {[%clk 0:01:36]} 16. dxe5 {[%clk 0:01:39]}  exf6 {[%clk 0:01:36]} 17. Qxg6 {[%clk 0:01:25]}  fxe5 {[%clk 0:01:35]} 18. Bxe5 {[%clk 0:01:11]}  Qe7 {[%clk 0:01:35]} 19. Qh7+ {[%clk 0:01:09]}  Kf7 {[%clk 0:01:34]} 20. Qxg7+ {[%clk 0:01:08]}  Ke8 {[%clk 0:01:34]} 21. Nxe4 {[%clk 0:00:55]}  dxe4 {[%clk 0:01:30]} 22. Qxe7+ {[%clk 0:00:54]}  Kxe7 {[%clk 0:01:31]} 23. Ke2 {[%clk 0:00:52]}  c5 {[%clk 0:01:30]} 24. Rad1 {[%clk 0:00:51]}  Ke6 {[%clk 0:01:28]} 25. Bf4 {[%clk 0:00:51]}  Rad8 {[%clk 0:01:26]} 26. Rxd8 {[%clk 0:00:48]}  Rxd8 {[%clk 0:01:27]} 27. Rd1 {[%clk 0:00:48]}  c4 {[%clk 0:01:24]} 28. Rxd8 {[%clk 0:00:48]} 1-0

[Event "November 21 Early 2023"]
[Site "https://www.chess.com"]
[Date "2023.11.21"]
[Round "10"]
[White "EdmundPlayer"]
[Black "Bazzano, Sebastian"]
[Result "1-0"]
[Board "149"]
[TimeControl "180+1"]
[BlackFideId "104566"]
[WhiteElo "2211"]
[BlackElo "2335"]
[BlackTeam "ARG"]
[WhiteClock "0:00:35"]
[BlackClock "0:00:39"]

1. Nf3 {[%clk 0:03:00]}  Nf6 {[%clk 0:02:59]} 2. g3 {[%clk 0:03:00]}  g6 {[%clk 0:02:59]} 3. Bg2 {[%clk 0:03:01]}  Bg7 {[%clk 0:02:59]} 4. d4 {[%clk 0:02:58]}  O-O {[%clk 0:02:59]} 5. c4 {[%clk 0:02:58]}  c5 {[%clk 0:02:59]} 6. Nc3 {[%clk 0:02:57]}  cxd4 {[%clk 0:02:59]} 7. Nxd4 {[%clk 0:02:57]}  Nc6 {[%clk 0:02:59]} 8. O-O {[%clk 0:02:54]}  Nxd4 {[%clk 0:02:59]} 9. Qxd4 {[%clk 0:02:54]}  d6 {[%clk 0:03:00]} 10. Bg5 {[%clk 0:02:46]}  a6 {[%clk 0:02:59]} 11. Qd2 {[%clk 0:02:44]}  Rb8 {[%clk 0:02:58]} 12. Rfd1 {[%clk 0:02:21]}  Be6 {[%clk 0:02:36]} 13. b3 {[%clk 0:02:13]}  b5 {[%clk 0:02:26]} 14. cxb5 {[%clk 0:02:11]}  axb5 {[%clk 0:02:26]} 15. Rac1 {[%clk 0:02:07]}  b4 {[%clk 0:02:20]} 16. Na4 {[%clk 0:01:55]}  Qa5 {[%clk 0:02:08]} 17. Rc2 {[%clk 0:01:26]}  Bd7 {[%clk 0:01:55]} 18. Bxf6 {[%clk 0:00:59]}  Bxf6 {[%clk 0:01:50]} 19. Bd5 {[%clk 0:00:52]}  Bxa4 {[%clk 0:01:20]} 20. bxa4 {[%clk 0:00:51]}  Qxa4 {[%clk 0:01:20]} 21. h4 {[%clk 0:00:50]}  Rfc8 {[%clk 0:01:16]} 22. Rdc1 {[%clk 0:00:43]}  Kg7 {[%clk 0:00:48]} 23. Rxc8 {[%clk 0:00:35]}  Rxc8 {[%clk 0:00:39]} 24. Rxc8 {[%clk 0:00:35]} 1-0

[Event "November 21 Early 2023"]
[Site "https://www.chess.com"]
[Date "2023.11.21"]
[Round "10"]
[White "Andersson, Bjorn 1971"]
[Black "Mangialardo, Tiago Carvalho"]
[Result "1-0"]
[Board "152"]
[TimeControl "180+1"]
[WhiteFideId "1702114"]
[BlackFideId "2130718"]
[WhiteElo "2172"]
[BlackElo "2146"]
[WhiteTeam "SWE"]
[BlackTeam "BRA"]
[WhiteClock "0:00:25"]
[BlackClock "0:00:00"]

1. e4 {[%clk 0:02:15]}  Nf6 {[%clk 0:02:59]} 2. Nc3 {[%clk 0:02:14]}  d5 {[%clk 0:02:59]} 3. e5 {[%clk 0:02:14]}  Nfd7 {[%clk 0:02:59]} 4. f4 {[%clk 0:02:14]}  e6 {[%clk 0:02:56]} 5. g3 {[%clk 0:02:14]}  c5 {[%clk 0:02:56]} 6. Bg2 {[%clk 0:02:14]}  Nc6 {[%clk 0:02:56]} 7. Nge2 {[%clk 0:02:15]}  f6 {[%clk 0:02:41]} 8. exf6 {[%clk 0:02:12]}  Nxf6 {[%clk 0:02:40]} 9. O-O {[%clk 0:02:13]}  Bd6 {[%clk 0:02:39]} 10. d3 {[%clk 0:02:12]}  O-O {[%clk 0:02:39]} 11. h3 {[%clk 0:02:06]}  Kh8 {[%clk 0:02:34]} 12. Kh2 {[%clk 0:02:04]}  Qe8 {[%clk 0:02:24]} 13. d4 {[%clk 0:01:58]}  Qh5 {[%clk 0:02:17]} 14. Bf3 {[%clk 0:01:51]}  Qg6 {[%clk 0:02:05]} 15. Be3 {[%clk 0:01:49]}  cxd4 {[%clk 0:01:58]} 16. Nxd4 {[%clk 0:01:48]}  e5 {[%clk 0:01:45]} 17. Nxc6 {[%clk 0:01:45]}  bxc6 {[%clk 0:01:45]} 18. fxe5 {[%clk 0:01:45]}  Bxe5 {[%clk 0:01:45]} 19. Bf2 {[%clk 0:01:41]}  Bf5 {[%clk 0:01:33]} 20. Rc1 {[%clk 0:01:40]}  Qh6 {[%clk 0:00:53]} 21. Bg2 {[%clk 0:01:21]}  Ng4+ {[%clk 0:00:49]} 22. Kg1 {[%clk 0:01:18]}  Nxf2 {[%clk 0:00:48]} 23. Rxf2 {[%clk 0:01:18]}  Bxg3 {[%clk 0:00:39]} 24. Rf3 {[%clk 0:01:18]}  Bf4 {[%clk 0:00:35]} 25. Ra1 {[%clk 0:01:13]}  Be4 {[%clk 0:00:29]} 26. Nxe4 {[%clk 0:01:13]}  dxe4 {[%clk 0:00:29]} 27. Rf1 {[%clk 0:01:10]}  Qh4 {[%clk 0:00:25]} 28. Qg4 {[%clk 0:01:06]}  Be3+ {[%clk 0:00:20]} 29. Kh1 {[%clk 0:01:05]}  Qh6 {[%clk 0:00:17]} 30. Rae1 {[%clk 0:01:02]}  Bc5 {[%clk 0:00:15]} 31. Qxe4 {[%clk 0:00:57]}  Bd6 {[%clk 0:00:06]} 32. Qxc6 {[%clk 0:00:55]}  Rac8 {[%clk 0:00:05]} 33. Qe4 {[%clk 0:00:53]}  Rxf1+ {[%clk 0:00:01]} 34. Rxf1 {[%clk 0:00:52]}  Qg5 {[%clk 0:00:02]} 35. Rf3 {[%clk 0:00:40]}  Qg6 {[%clk 0:00:01]} 36. Qxg6 {[%clk 0:00:39]}  hxg6 {[%clk 0:00:02]} 37. Rc3 {[%clk 0:00:38]}  Rxc3 {[%clk 0:00:01]} 38. bxc3 {[%clk 0:00:38]}  Be5 {[%clk 0:00:02]} 39. c4 {[%clk 0:00:38]}  Kg8 {[%clk 0:00:02]} 40. Be4 {[%clk 0:00:39]}  g5 {[%clk 0:00:01]} 41. Bg6 {[%clk 0:00:37]}  Kf8 {[%clk 0:00:02]} 42. Kg2 {[%clk 0:00:38]}  Ke7 {[%clk 0:00:03]} 43. Kf3 {[%clk 0:00:38]}  Kd6 {[%clk 0:00:03]} 44. Ke4 {[%clk 0:00:39]}  Bf4 {[%clk 0:00:04]} 45. Bf7 {[%clk 0:00:38]}  Kc5 {[%clk 0:00:04]} 46. c3 {[%clk 0:00:37]}  Bd2 {[%clk 0:00:04]} 47. Kd3 {[%clk 0:00:37]}  Bf4 {[%clk 0:00:04]} 48. Bd5 {[%clk 0:00:38]}  Bc1 {[%clk 0:00:04]} 49. a4 {[%clk 0:00:38]}  Bf4 {[%clk 0:00:04]} 50. Ke4 {[%clk 0:00:37]}  Bd2 {[%clk 0:00:04]} 51. Kf5 {[%clk 0:00:37]}  Bc1 {[%clk 0:00:03]} 52. Kg6 {[%clk 0:00:36]}  Bd2 {[%clk 0:00:02]} 53. Kxg7 {[%clk 0:00:35]}  Bxc3+ {[%clk 0:00:02]} 54. Kg6 {[%clk 0:00:35]}  Bd2 {[%clk 0:00:03]} 55. Kf5 {[%clk 0:00:34]}  Bc1 {[%clk 0:00:04]} 56. a5 {[%clk 0:00:31]}  Bd2 {[%clk 0:00:03]} 57. a6 {[%clk 0:00:31]}  Kb6 {[%clk 0:00:03]} 58. Bb7 {[%clk 0:00:29]}  Kc5 {[%clk 0:00:03]} 59. Bd5 {[%clk 0:00:26]}  Kb6 {[%clk 0:00:03]} 60. Ke4 {[%clk 0:00:26]}  Kxa6 {[%clk 0:00:02]} 61. c5 {[%clk 0:00:27]}  Kb5 {[%clk 0:00:01]} 62. Kd4 {[%clk 0:00:26]}  Bb4 {[%clk 0:00:01]} 63. c6 {[%clk 0:00:26]}  Kb6 {[%clk 0:00:01]} 64. Kc4 {[%clk 0:00:26]}  Bd6 {[%clk 0:00:01]} 65. Bf3 {[%clk 0:00:24]}  a5 {[%clk 0:00:00]} 66. Kd5 {[%clk 0:00:25]} 1-0